[Event "Titled Tuesday Blitz January 17 Early 2023"]
[White "Leiva, Gianmarco"]
[Black "Boder, Jan"]
[WhiteFideId "3804399"]
[BlackFideId "16243226"]
[WhiteElo "2392"]
[BlackElo "2294"]
[Result "1-0"]
[Round "05"]
[TimeControl "180+2"]
[Date "2023.01.17"]
[WhiteClock "0:00:13"]
[BlackClock "0:00:02"]

1. e4 {[%clk 0:02:59]}  c5 {[%clk 0:02:59]} 2. Nf3 {[%clk 0:02:59]}  Nc6 {[%clk 0:02:57]} 3. Bb5 {[%clk 0:02:59]}  e6 {[%clk 0:02:57]} 4. O-O {[%clk 0:02:56]}  Nge7 {[%clk 0:02:55]} 5. d4 {[%clk 0:02:52]}  cxd4 {[%clk 0:02:51]} 6. Nxd4 {[%clk 0:02:53]}  Nxd4 {[%clk 0:02:50]} 7. Qxd4 {[%clk 0:02:52]}  Nc6 {[%clk 0:02:51]} 8. Qe3 {[%clk 0:02:44]}  Be7 {[%clk 0:02:33]} 9. c4 {[%clk 0:02:22]}  O-O {[%clk 0:02:29]} 10. Nc3 {[%clk 0:02:21]}  a6 {[%clk 0:02:25]} 11. Ba4 {[%clk 0:02:21]}  Bf6 {[%clk 0:02:21]} 12. Bxc6 {[%clk 0:02:16]}  Bxc3 {[%clk 0:02:04]} 13. Ba4 {[%clk 0:01:55]}  Bb4 {[%clk 0:01:48]} 14. Qg3 {[%clk 0:01:41]}  Qf6 {[%clk 0:01:37]} 15. e5 {[%clk 0:01:39]}  Qg6 {[%clk 0:01:36]} 16. Rd1 {[%clk 0:01:37]}  Qxg3 {[%clk 0:01:32]} 17. hxg3 {[%clk 0:01:37]}  f6 {[%clk 0:01:10]} 18. exf6 {[%clk 0:01:27]}  Rxf6 {[%clk 0:01:08]} 19. Be3 {[%clk 0:01:14]}  Rf7 {[%clk 0:00:50]} 20. c5 {[%clk 0:01:14]}  Ba5 {[%clk 0:00:30]} 21. a3 {[%clk 0:00:53]}  Kf8 {[%clk 0:00:29]} 22. Bf4 {[%clk 0:00:40]}  Ke8 {[%clk 0:00:28]} 23. Rd6 {[%clk 0:00:35]}  Kf8 {[%clk 0:00:04]} 24. Rd3 {[%clk 0:00:25]}  Bd8 {[%clk 0:00:04]} 25. Rad1 {[%clk 0:00:25]}  Bf6 {[%clk 0:00:04]} 26. b4 {[%clk 0:00:24]}  e5 {[%clk 0:00:03]} 27. Bc1 {[%clk 0:00:20]}  Ke8 {[%clk 0:00:04]} 28. Rd6 {[%clk 0:00:15]}  Re7 {[%clk 0:00:03]} 29. Bc2 {[%clk 0:00:14]}  g6 {[%clk 0:00:02]} 30. Rxf6 {[%clk 0:00:13]} 1-0


[Site "https://www.chess.com"]

[Event "Titled Tuesday Blitz January 17 Early 2023"]
[White "Jovic, Stanoje"]
[Black "Fiorito, Joaquin"]
[WhiteFideId "905020"]
[BlackFideId "180173"]
[WhiteElo "2075"]
[BlackElo "2405"]
[Result "1-0"]
[Round "05"]
[TimeControl "180+2"]
[Date "2023.01.17"]
[WhiteClock "0:00:13"]
[BlackClock "0:00:07"]

1. c4 {[%clk 0:03:00]}  Nf6 {[%clk 0:02:58]} 2. g3 {[%clk 0:03:01]}  e6 {[%clk 0:02:58]} 3. Bg2 {[%clk 0:03:01]}  d5 {[%clk 0:02:59]} 4. Nf3 {[%clk 0:03:01]}  dxc4 {[%clk 0:02:57]} 5. O-O {[%clk 0:03:01]}  Nbd7 {[%clk 0:02:56]} 6. a4 {[%clk 0:02:59]}  Nc5 {[%clk 0:02:18]} 7. Qc2 {[%clk 0:02:42]}  Nb3 {[%clk 0:02:18]} 8. Ra2 {[%clk 0:02:41]}  Nxc1 {[%clk 0:02:09]} 9. Rxc1 {[%clk 0:02:40]}  Bd6 {[%clk 0:02:09]} 10. Qxc4 {[%clk 0:02:38]}  O-O {[%clk 0:02:09]} 11. d4 {[%clk 0:02:38]}  Rb8 {[%clk 0:01:44]} 12. Nc3 {[%clk 0:02:36]}  a6 {[%clk 0:01:41]} 13. e4 {[%clk 0:02:34]}  b5 {[%clk 0:01:09]} 14. axb5 {[%clk 0:02:28]}  axb5 {[%clk 0:01:10]} 15. Qe2 {[%clk 0:02:18]}  b4 {[%clk 0:00:59]} 16. Na4 {[%clk 0:02:08]}  b3 {[%clk 0:00:50]} 17. Raa1 {[%clk 0:02:07]}  Be7 {[%clk 0:00:45]} 18. Ne5 {[%clk 0:02:01]}  Bb7 {[%clk 0:00:36]} 19. Rc4 {[%clk 0:01:46]}  Bd6 {[%clk 0:00:19]} 20. Nd3 {[%clk 0:01:37]}  Be7 {[%clk 0:00:18]} 21. Rac1 {[%clk 0:01:31]}  Ba6 {[%clk 0:00:15]} 22. Rxc7 {[%clk 0:01:21]}  Qxd4 {[%clk 0:00:14]} 23. Bf1 {[%clk 0:01:12]}  Qxa4 {[%clk 0:00:13]} 24. Rxe7 {[%clk 0:01:09]}  Qxe4 {[%clk 0:00:11]} 25. Qxe4 {[%clk 0:01:03]}  Nxe4 {[%clk 0:00:12]} 26. Rcc7 {[%clk 0:01:02]}  Bxd3 {[%clk 0:00:10]} 27. Bxd3 {[%clk 0:01:01]}  Nf6 {[%clk 0:00:10]} 28. Rb7 {[%clk 0:00:52]}  Nd5 {[%clk 0:00:09]} 29. Rxf7 {[%clk 0:00:42]}  Rxb7 {[%clk 0:00:08]} 30. Rxb7 {[%clk 0:00:41]}  Rd8 {[%clk 0:00:07]} 31. Rxb3 {[%clk 0:00:40]}  Nf6 {[%clk 0:00:06]} 32. Bc4 {[%clk 0:00:39]}  Kf7 {[%clk 0:00:05]} 33. Rb7+ {[%clk 0:00:39]}  Rd7 {[%clk 0:00:06]} 34. Rxd7+ {[%clk 0:00:37]}  Nxd7 {[%clk 0:00:06]} 35. f4 {[%clk 0:00:36]}  Nb6 {[%clk 0:00:07]} 36. Bd3 {[%clk 0:00:33]}  g6 {[%clk 0:00:07]} 37. b4 {[%clk 0:00:32]}  Ke7 {[%clk 0:00:07]} 38. Kf2 {[%clk 0:00:32]}  Kd6 {[%clk 0:00:07]} 39. Kf3 {[%clk 0:00:31]}  Nd5 {[%clk 0:00:07]} 40. b5 {[%clk 0:00:30]}  Nc3 {[%clk 0:00:07]} 41. Kg4 {[%clk 0:00:29]}  Nd5 {[%clk 0:00:05]} 42. Kg5 {[%clk 0:00:28]}  Nb4 {[%clk 0:00:04]} 43. Bf1 {[%clk 0:00:25]}  Nc2 {[%clk 0:00:04]} 44. Kh6 {[%clk 0:00:24]}  Ne3 {[%clk 0:00:05]} 45. Bd3 {[%clk 0:00:24]}  Ng4+ {[%clk 0:00:04]} 46. Kxh7 {[%clk 0:00:23]}  Nxh2 {[%clk 0:00:05]} 47. Kxg6 {[%clk 0:00:23]}  Nf3 {[%clk 0:00:06]} 48. g4 {[%clk 0:00:23]}  e5 {[%clk 0:00:06]} 49. f5 {[%clk 0:00:23]}  Nd4 {[%clk 0:00:04]} 50. f6 {[%clk 0:00:22]}  Ne6 {[%clk 0:00:04]} 51. f7 {[%clk 0:00:20]}  Ke7 {[%clk 0:00:05]} 52. b6 {[%clk 0:00:19]}  Nc5 {[%clk 0:00:03]} 53. Be4 {[%clk 0:00:17]}  Kf8 {[%clk 0:00:03]} 54. b7 {[%clk 0:00:17]}  Nd7 {[%clk 0:00:04]} 55. Bd5 {[%clk 0:00:16]}  Nb8 {[%clk 0:00:04]} 56. Kf5 {[%clk 0:00:16]}  Nd7 {[%clk 0:00:04]} 57. Ke6 {[%clk 0:00:16]}  Nb8 {[%clk 0:00:04]} 58. Kxe5 {[%clk 0:00:16]}  Ke7 {[%clk 0:00:05]} 59. g5 {[%clk 0:00:15]}  Nd7+ {[%clk 0:00:05]} 60. Kf5 {[%clk 0:00:15]}  Kf8 {[%clk 0:00:06]} 61. g6 {[%clk 0:00:15]}  Kg7 {[%clk 0:00:06]} 62. Ke6 {[%clk 0:00:15]}  Nb8 {[%clk 0:00:06]} 63. Ke7 {[%clk 0:00:14]}  Nd7 {[%clk 0:00:06]} 64. Kxd7 {[%clk 0:00:14]}  Kh6 {[%clk 0:00:06]} 65. f8=Q+ {[%clk 0:00:14]}  Kg5 {[%clk 0:00:07]} 66. g7 {[%clk 0:00:13]} 1-0


[Site "https://www.chess.com"]

[Event "Titled Tuesday Blitz January 17 Early 2023"]
[White "Tasev, Dejan"]
[Black "Degenbaev, Aziz"]
[WhiteFideId "936618"]
[BlackFideId "13802640"]
[WhiteElo "2205"]
[BlackElo "2203"]
[Result "1-0"]
[Round "05"]
[TimeControl "180+2"]
[Date "2023.01.17"]
[WhiteClock "0:00:05"]
[BlackClock "0:00:02"]

1. e4 {[%clk 0:03:00]}  c5 {[%clk 0:02:58]} 2. Nf3 {[%clk 0:03:00]}  d6 {[%clk 0:02:58]} 3. Nc3 {[%clk 0:03:01]}  Nf6 {[%clk 0:02:53]} 4. d4 {[%clk 0:03:01]}  cxd4 {[%clk 0:02:53]} 5. Nxd4 {[%clk 0:03:02]}  a6 {[%clk 0:02:54]} 6. Bc4 {[%clk 0:03:01]}  e6 {[%clk 0:02:53]} 7. Bb3 {[%clk 0:03:01]}  Be7 {[%clk 0:02:48]} 8. f3 {[%clk 0:03:01]}  O-O {[%clk 0:02:48]} 9. Be3 {[%clk 0:03:01]}  b5 {[%clk 0:02:48]} 10. a3 {[%clk 0:03:00]}  Qc7 {[%clk 0:02:42]} 11. Qd2 {[%clk 0:03:00]}  Nbd7 {[%clk 0:02:38]} 12. g4 {[%clk 0:02:58]}  Nc5 {[%clk 0:02:36]} 13. Ba2 {[%clk 0:02:55]}  Rb8 {[%clk 0:02:33]} 14. O-O {[%clk 0:02:46]}  Bd7 {[%clk 0:02:13]} 15. b4 {[%clk 0:02:38]}  Na4 {[%clk 0:02:10]} 16. Nxa4 {[%clk 0:02:38]}  bxa4 {[%clk 0:02:11]} 17. c4 {[%clk 0:02:34]}  Rfd8 {[%clk 0:01:55]} 18. Rac1 {[%clk 0:02:33]}  a5 {[%clk 0:01:12]} 19. Rb1 {[%clk 0:02:28]}  axb4 {[%clk 0:01:11]} 20. axb4 {[%clk 0:02:28]}  Be8 {[%clk 0:01:00]} 21. Rfc1 {[%clk 0:02:25]}  Qb7 {[%clk 0:00:54]} 22. Qf2 {[%clk 0:02:06]}  Nd7 {[%clk 0:00:41]} 23. c5 {[%clk 0:01:57]}  Ne5 {[%clk 0:00:36]} 24. Qe2 {[%clk 0:01:43]}  dxc5 {[%clk 0:00:33]} 25. bxc5 {[%clk 0:01:41]}  Qc7 {[%clk 0:00:31]} 26. Rxb8 {[%clk 0:01:38]}  Rxb8 {[%clk 0:00:30]} 27. f4 {[%clk 0:01:22]}  Nc6 {[%clk 0:00:23]} 28. Nb5 {[%clk 0:00:59]}  Qb7 {[%clk 0:00:15]} 29. Nd6 {[%clk 0:00:58]}  Bxd6 {[%clk 0:00:15]} 30. cxd6 {[%clk 0:00:58]}  Bd7 {[%clk 0:00:16]} 31. e5 {[%clk 0:00:53]}  g6 {[%clk 0:00:14]} 32. h4 {[%clk 0:00:43]}  a3 {[%clk 0:00:14]} 33. Kh2 {[%clk 0:00:41]}  Qb2 {[%clk 0:00:14]} 34. Rc2 {[%clk 0:00:38]}  Qa1 {[%clk 0:00:12]} 35. h5 {[%clk 0:00:32]}  Rb2 {[%clk 0:00:12]} 36. Bc4 {[%clk 0:00:22]}  Nb4 {[%clk 0:00:07]} 37. Rd2 {[%clk 0:00:15]}  Rxd2 {[%clk 0:00:07]} 38. Qxd2 {[%clk 0:00:15]}  Qb2 {[%clk 0:00:07]} 39. Kg3 {[%clk 0:00:10]}  gxh5 {[%clk 0:00:06]} 40. gxh5 {[%clk 0:00:09]}  Nc2 {[%clk 0:00:06]} 41. Bf2 {[%clk 0:00:08]}  a2 {[%clk 0:00:04]} 42. Bxa2 {[%clk 0:00:07]}  Qxa2 {[%clk 0:00:05]} 43. Qd3 {[%clk 0:00:07]}  Nb4 {[%clk 0:00:04]} 44. Qf3 {[%clk 0:00:07]}  Nd5 {[%clk 0:00:02]} 45. Qg4+ {[%clk 0:00:07]}  Kf8 {[%clk 0:00:02]} 46. Qg5 {[%clk 0:00:07]}  Qb3+ {[%clk 0:00:02]} 47. Kh2 {[%clk 0:00:07]}  Qa4 {[%clk 0:00:01]} 48. Qd8+ {[%clk 0:00:07]}  Kg7 {[%clk 0:00:02]} 49. Qg5+ {[%clk 0:00:07]}  Kf8 {[%clk 0:00:02]} 50. Bg3 {[%clk 0:00:05]}  Qc2+ {[%clk 0:00:01]} 51. Kg1 {[%clk 0:00:03]}  Qd1+ {[%clk 0:00:01]} 52. Kh2 {[%clk 0:00:03]}  Qe2+ {[%clk 0:00:01]} 53. Kh3 {[%clk 0:00:04]}  Qf1+ {[%clk 0:00:01]} 54. Kh2 {[%clk 0:00:04]}  Qe2+ {[%clk 0:00:02]} 55. Kg1 {[%clk 0:00:03]}  Qb5 {[%clk 0:00:02]} 56. Qd8+ {[%clk 0:00:02]}  Be8 {[%clk 0:00:03]} 57. h6 {[%clk 0:00:03]}  Ne3 {[%clk 0:00:02]} 58. Qe7+ {[%clk 0:00:04]}  Kg8 {[%clk 0:00:02]} 59. Qg5+ {[%clk 0:00:04]}  Kf8 {[%clk 0:00:02]} 60. Qg7# {[%clk 0:00:05]} 1-0


[Site "https://www.chess.com"]

[Event "Titled Tuesday Blitz January 17 Early 2023"]
[White "Sielecki, Christof"]
[Black "Becerra, Juan David"]
[WhiteFideId "4620437"]
[BlackFideId "4404998"]
[WhiteElo "2419"]
[BlackElo "2382"]
[Result "0-1"]
[Round "05"]
[TimeControl "180+2"]
[Date "2023.01.17"]
[WhiteClock "0:00:10"]
[BlackClock "0:00:28"]

1. e4 {[%clk 0:03:00]}  e5 {[%clk 0:02:57]} 2. Nf3 {[%clk 0:03:00]}  Nc6 {[%clk 0:02:56]} 3. Bb5 {[%clk 0:03:00]}  a6 {[%clk 0:02:48]} 4. Ba4 {[%clk 0:03:00]}  f5 {[%clk 0:02:39]} 5. d4 {[%clk 0:02:57]}  exd4 {[%clk 0:02:32]} 6. e5 {[%clk 0:02:57]}  Bc5 {[%clk 0:02:24]} 7. c3 {[%clk 0:02:55]}  Nge7 {[%clk 0:02:18]} 8. cxd4 {[%clk 0:02:52]}  Bb4+ {[%clk 0:02:18]} 9. Nc3 {[%clk 0:02:48]}  d5 {[%clk 0:02:18]} 10. O-O {[%clk 0:02:37]}  O-O {[%clk 0:02:16]} 11. Ne2 {[%clk 0:02:33]}  b5 {[%clk 0:02:10]} 12. Bb3 {[%clk 0:02:28]}  Na5 {[%clk 0:02:10]} 13. Bd2 {[%clk 0:02:24]}  Bxd2 {[%clk 0:02:03]} 14. Qxd2 {[%clk 0:02:21]}  Nc4 {[%clk 0:02:02]} 15. Qc1 {[%clk 0:02:00]}  f4 {[%clk 0:01:57]} 16. h3 {[%clk 0:01:56]}  Ng6 {[%clk 0:01:52]} 17. Bc2 {[%clk 0:01:52]}  Bf5 {[%clk 0:01:44]} 18. b3 {[%clk 0:01:46]}  Nb6 {[%clk 0:01:43]} 19. Bxf5 {[%clk 0:01:43]}  Rxf5 {[%clk 0:01:44]} 20. Qc6 {[%clk 0:01:41]}  Qd7 {[%clk 0:01:38]} 21. Rac1 {[%clk 0:01:37]}  Rc8 {[%clk 0:01:31]} 22. Qxd7 {[%clk 0:01:34]}  Nxd7 {[%clk 0:01:32]} 23. Nc3 {[%clk 0:01:16]}  Ne7 {[%clk 0:01:28]} 24. a4 {[%clk 0:01:15]}  b4 {[%clk 0:01:25]} 25. Na2 {[%clk 0:01:14]}  a5 {[%clk 0:01:25]} 26. Rc2 {[%clk 0:01:14]}  c5 {[%clk 0:01:25]} 27. e6 {[%clk 0:01:03]}  Nf8 {[%clk 0:01:22]} 28. dxc5 {[%clk 0:01:00]}  Nxe6 {[%clk 0:01:21]} 29. Re1 {[%clk 0:00:57]}  Rf6 {[%clk 0:01:19]} 30. Rce2 {[%clk 0:00:55]}  Rc6 {[%clk 0:01:18]} 31. Nc1 {[%clk 0:00:52]}  Nf5 {[%clk 0:01:15]} 32. Nd3 {[%clk 0:00:50]}  h6 {[%clk 0:01:03]} 33. Nfe5 {[%clk 0:00:23]}  Ned4 {[%clk 0:01:02]} 34. Nxc6 {[%clk 0:00:21]}  Nxe2+ {[%clk 0:01:02]} 35. Rxe2 {[%clk 0:00:21]}  Rxc6 {[%clk 0:01:03]} 36. Re5 {[%clk 0:00:18]}  Nd4 {[%clk 0:01:03]} 37. Rxd5 {[%clk 0:00:19]}  Nxb3 {[%clk 0:01:03]} 38. Rd8+ {[%clk 0:00:19]}  Kh7 {[%clk 0:01:03]} 39. Rb8 {[%clk 0:00:20]}  Nxc5 {[%clk 0:01:01]} 40. Ne5 {[%clk 0:00:18]}  Re6 {[%clk 0:01:00]} 41. Nf7 {[%clk 0:00:16]}  Nxa4 {[%clk 0:00:58]} 42. h4 {[%clk 0:00:15]}  Re7 {[%clk 0:00:50]} 43. Nh8 {[%clk 0:00:13]}  h5 {[%clk 0:00:49]} 44. Rf8 {[%clk 0:00:10]}  b3 {[%clk 0:00:47]} 45. Nf7 {[%clk 0:00:09]}  b2 {[%clk 0:00:26]} 46. Ng5+ {[%clk 0:00:09]}  Kg6 {[%clk 0:00:27]} 47. Rb8 {[%clk 0:00:10]}  Re1+ {[%clk 0:00:27]} 48. Kh2 {[%clk 0:00:10]}  b1=Q {[%clk 0:00:28]} 0-1


[Site "https://www.chess.com"]

[Event "Titled Tuesday Blitz January 17 Early 2023"]
[White "Saravana, Krishnan P."]
[Black "Devaev, Alexander"]
[WhiteFideId "5018382"]
[BlackFideId "4169395"]
[WhiteElo "2284"]
[BlackElo "2325"]
[Result "1-0"]
[Round "05"]
[TimeControl "180+2"]
[Date "2023.01.17"]
[WhiteClock "0:00:18"]
[BlackClock "0:00:04"]

1. e4 {[%clk 0:02:54]}  c6 {[%clk 0:03:00]} 2. d4 {[%clk 0:02:50]}  d5 {[%clk 0:03:01]} 3. f3 {[%clk 0:02:49]}  dxe4 {[%clk 0:03:00]} 4. fxe4 {[%clk 0:02:48]}  e5 {[%clk 0:03:01]} 5. Nf3 {[%clk 0:02:49]}  Be6 {[%clk 0:03:01]} 6. c3 {[%clk 0:02:48]}  Nd7 {[%clk 0:03:00]} 7. Be3 {[%clk 0:02:46]}  Ngf6 {[%clk 0:02:42]} 8. Nbd2 {[%clk 0:02:45]}  c5 {[%clk 0:02:36]} 9. d5 {[%clk 0:02:42]}  Bg4 {[%clk 0:02:35]} 10. h3 {[%clk 0:02:38]}  Bxf3 {[%clk 0:02:34]} 11. Qxf3 {[%clk 0:02:37]}  a6 {[%clk 0:02:23]} 12. a4 {[%clk 0:02:37]}  Be7 {[%clk 0:01:29]} 13. a5 {[%clk 0:02:33]}  O-O {[%clk 0:01:29]} 14. Be2 {[%clk 0:02:24]}  Ne8 {[%clk 0:01:03]} 15. g3 {[%clk 0:02:23]}  Bg5 {[%clk 0:00:56]} 16. Bf2 {[%clk 0:02:18]}  Nd6 {[%clk 0:00:53]} 17. h4 {[%clk 0:02:19]}  Bxd2+ {[%clk 0:00:51]} 18. Kxd2 {[%clk 0:02:19]}  b6 {[%clk 0:00:43]} 19. g4 {[%clk 0:02:14]}  bxa5 {[%clk 0:00:41]} 20. g5 {[%clk 0:02:11]}  Rb8 {[%clk 0:00:41]} 21. Ra2 {[%clk 0:02:09]}  a4 {[%clk 0:00:28]} 22. Be3 {[%clk 0:02:02]}  a3 {[%clk 0:00:28]} 23. bxa3 {[%clk 0:02:02]}  Rb3 {[%clk 0:00:24]} 24. h5 {[%clk 0:01:52]}  Qa5 {[%clk 0:00:24]} 25. Rc2 {[%clk 0:01:48]}  Qa4 {[%clk 0:00:23]} 26. Rh4 {[%clk 0:01:45]}  Rxa3 {[%clk 0:00:21]} 27. g6 {[%clk 0:01:45]}  Ra2 {[%clk 0:00:21]} 28. Bd1 {[%clk 0:01:40]}  Nc4+ {[%clk 0:00:19]} 29. Kd3 {[%clk 0:01:37]}  Rxc2 {[%clk 0:00:14]} 30. Bxc2 {[%clk 0:01:36]}  Qb5 {[%clk 0:00:14]} 31. gxh7+ {[%clk 0:01:31]}  Kh8 {[%clk 0:00:13]} 32. h6 {[%clk 0:01:26]}  g6 {[%clk 0:00:13]} 33. Bc1 {[%clk 0:01:21]}  Kxh7 {[%clk 0:00:12]} 34. Qh3 {[%clk 0:01:17]}  a5 {[%clk 0:00:06]} 35. Ke2 {[%clk 0:01:16]}  a4 {[%clk 0:00:02]} 36. Bd3 {[%clk 0:01:15]}  Ndb6 {[%clk 0:00:02]} 37. Qf1 {[%clk 0:01:02]}  Qd7 {[%clk 0:00:03]} 38. Qf6 {[%clk 0:01:01]}  Rg8 {[%clk 0:00:03]} 39. Qf1 {[%clk 0:00:43]}  a3 {[%clk 0:00:03]} 40. Bb1 {[%clk 0:00:35]}  Qe7 {[%clk 0:00:04]} 41. Rh2 {[%clk 0:00:31]}  Nb2 {[%clk 0:00:04]} 42. Bxb2 {[%clk 0:00:23]}  axb2 {[%clk 0:00:04]} 43. Kd1 {[%clk 0:00:20]}  c4 {[%clk 0:00:04]} 44. Rxb2 {[%clk 0:00:19]}  Na4 {[%clk 0:00:04]} 45. Rf2 {[%clk 0:00:18]}  Nxc3+ {[%clk 0:00:04]} 46. Kc2 {[%clk 0:00:18]} 1-0


[Site "https://www.chess.com"]

[Event "Titled Tuesday Blitz January 17 Early 2023"]
[White "Silva, Caio Henrique Angelico"]
[Black "Dilanyan, Grigor"]
[WhiteFideId "22777210"]
[BlackFideId "13303570"]
[WhiteElo "2129"]
[BlackElo "2174"]
[Result "0-1"]
[Round "05"]
[TimeControl "180+2"]
[Date "2023.01.17"]
[WhiteClock "0:00:01"]
[BlackClock "0:00:12"]

1. Nf3 {[%clk 0:02:50]}  b6 {[%clk 0:02:59]} 2. g3 {[%clk 0:02:49]}  Bb7 {[%clk 0:02:59]} 3. Bg2 {[%clk 0:02:49]}  h5 {[%clk 0:02:59]} 4. h4 {[%clk 0:02:43]}  e6 {[%clk 0:02:51]} 5. d4 {[%clk 0:02:42]}  g6 {[%clk 0:02:50]} 6. c4 {[%clk 0:02:40]}  Bg7 {[%clk 0:02:50]} 7. Nc3 {[%clk 0:02:40]}  Ne7 {[%clk 0:02:48]} 8. e4 {[%clk 0:02:39]}  O-O {[%clk 0:02:48]} 9. O-O {[%clk 0:02:37]}  d6 {[%clk 0:02:08]} 10. d5 {[%clk 0:02:21]}  e5 {[%clk 0:02:06]} 11. Rb1 {[%clk 0:02:19]}  Nd7 {[%clk 0:02:05]} 12. b4 {[%clk 0:02:17]}  a5 {[%clk 0:02:05]} 13. a3 {[%clk 0:02:18]}  axb4 {[%clk 0:02:06]} 14. axb4 {[%clk 0:02:19]}  Ra7 {[%clk 0:01:55]} 15. Nb5 {[%clk 0:02:17]}  Ra8 {[%clk 0:01:55]} 16. Be3 {[%clk 0:02:12]}  Ba6 {[%clk 0:01:55]} 17. Qc2 {[%clk 0:02:09]}  f6 {[%clk 0:01:35]} 18. Rfc1 {[%clk 0:01:55]}  Rf7 {[%clk 0:01:34]} 19. Bh3 {[%clk 0:01:53]}  Nf8 {[%clk 0:01:33]} 20. Kg2 {[%clk 0:01:40]}  Kh7 {[%clk 0:01:33]} 21. g4 {[%clk 0:01:36]}  Bc8 {[%clk 0:01:30]} 22. gxh5 {[%clk 0:01:16]}  Bxh3+ {[%clk 0:01:30]} 23. Kxh3 {[%clk 0:01:17]}  gxh5 {[%clk 0:01:29]} 24. Rg1 {[%clk 0:01:14]}  Nfg6 {[%clk 0:01:28]} 25. c5 {[%clk 0:01:12]}  bxc5 {[%clk 0:01:27]} 26. bxc5 {[%clk 0:01:12]}  Rb8 {[%clk 0:01:25]} 27. cxd6 {[%clk 0:01:11]}  cxd6 {[%clk 0:01:25]} 28. Na7 {[%clk 0:00:58]}  Rxb1 {[%clk 0:01:22]} 29. Qxb1 {[%clk 0:00:59]}  Qd7+ {[%clk 0:01:22]} 30. Kh2 {[%clk 0:00:57]}  Bh6 {[%clk 0:01:18]} 31. Bxh6 {[%clk 0:00:50]}  Kxh6 {[%clk 0:01:19]} 32. Nc6 {[%clk 0:00:47]}  Nf4 {[%clk 0:01:17]} 33. Rg3 {[%clk 0:00:37]}  Nxc6 {[%clk 0:01:14]} 34. dxc6 {[%clk 0:00:35]}  Qxc6 {[%clk 0:01:15]} 35. Qb8 {[%clk 0:00:34]}  Ng6 {[%clk 0:01:06]} 36. Qg8 {[%clk 0:00:32]}  Rg7 {[%clk 0:01:06]} 37. Qe6 {[%clk 0:00:23]}  Qxe4 {[%clk 0:00:58]} 38. Qxf6 {[%clk 0:00:23]}  Qf4 {[%clk 0:00:57]} 39. Qxd6 {[%clk 0:00:19]}  Kh7 {[%clk 0:00:47]} 40. Ng5+ {[%clk 0:00:19]}  Kh8 {[%clk 0:00:48]} 41. Qd8+ {[%clk 0:00:09]}  Rg8 {[%clk 0:00:45]} 42. Qd7 {[%clk 0:00:09]}  Qxh4+ {[%clk 0:00:43]} 43. Kg1 {[%clk 0:00:09]}  Rg7 {[%clk 0:00:31]} 44. Qe8+ {[%clk 0:00:09]}  Rg8 {[%clk 0:00:30]} 45. Qf7 {[%clk 0:00:09]}  Rg7 {[%clk 0:00:17]} 46. Qf6 {[%clk 0:00:08]}  Qf4 {[%clk 0:00:14]} 47. Qd8+ {[%clk 0:00:03]}  Rg8 {[%clk 0:00:14]} 48. Qd7 {[%clk 0:00:03]}  Rg7 {[%clk 0:00:12]} 49. Qe8+ {[%clk 0:00:03]}  Qf8 {[%clk 0:00:13]} 50. Nf7+ {[%clk 0:00:02]}  Rxf7 {[%clk 0:00:12]} 51. Qxf7 {[%clk 0:00:01]}  Qxf7 {[%clk 0:00:12]} 0-1


[Site "https://www.chess.com"]

[Event "Titled Tuesday Blitz January 17 Early 2023"]
[White "Sargissyan, Sargis"]
[Black "Golubev, Mikhail"]
[WhiteFideId "13303210"]
[BlackFideId "14100983"]
[WhiteElo "2234"]
[BlackElo "2461"]
[Result "0-1"]
[Round "05"]
[TimeControl "180+2"]
[Date "2023.01.17"]
[WhiteClock "0:00:12"]
[BlackClock "0:00:17"]

1. e4 {[%clk 0:02:53]}  c5 {[%clk 0:02:55]} 2. Nf3 {[%clk 0:02:53]}  d6 {[%clk 0:02:55]} 3. d4 {[%clk 0:02:54]}  cxd4 {[%clk 0:02:55]} 4. Nxd4 {[%clk 0:02:55]}  Nf6 {[%clk 0:02:55]} 5. Nc3 {[%clk 0:02:55]}  Nc6 {[%clk 0:02:52]} 6. Bg5 {[%clk 0:02:54]}  e6 {[%clk 0:02:49]} 7. Qd2 {[%clk 0:02:54]}  a6 {[%clk 0:02:45]} 8. O-O-O {[%clk 0:02:54]}  Bd7 {[%clk 0:02:34]} 9. f4 {[%clk 0:02:39]}  Be7 {[%clk 0:02:29]} 10. Kb1 {[%clk 0:02:20]}  b5 {[%clk 0:02:13]} 11. Bxf6 {[%clk 0:02:12]}  Bxf6 {[%clk 0:02:10]} 12. Nxc6 {[%clk 0:02:11]}  Bxc6 {[%clk 0:02:09]} 13. Qxd6 {[%clk 0:02:11]}  Qxd6 {[%clk 0:01:57]} 14. Rxd6 {[%clk 0:02:10]}  Rc8 {[%clk 0:01:58]} 15. e5 {[%clk 0:02:07]}  Be7 {[%clk 0:01:57]} 16. Rd1 {[%clk 0:02:06]}  O-O {[%clk 0:01:58]} 17. Bd3 {[%clk 0:01:25]}  Bxg2 {[%clk 0:01:47]} 18. Rhg1 {[%clk 0:01:25]}  Bc6 {[%clk 0:01:25]} 19. Ne4 {[%clk 0:01:11]}  Rfd8 {[%clk 0:01:15]} 20. Ng5 {[%clk 0:00:48]}  h6 {[%clk 0:01:02]} 21. Ne4 {[%clk 0:00:47]}  Rd4 {[%clk 0:00:33]} 22. Nf6+ {[%clk 0:00:30]}  Bxf6 {[%clk 0:00:32]} 23. exf6 {[%clk 0:00:31]}  g6 {[%clk 0:00:31]} 24. Rdf1 {[%clk 0:00:13]}  Kf8 {[%clk 0:00:29]} 25. h4 {[%clk 0:00:13]}  h5 {[%clk 0:00:27]} 26. Rg5 {[%clk 0:00:12]}  Be4 {[%clk 0:00:21]} 27. Be2 {[%clk 0:00:12]}  Rxc2 {[%clk 0:00:17]} 0-1


[Site "https://www.chess.com"]

[Event "Titled Tuesday Blitz January 17 Early 2023"]
[White "Ovezdurdyyeva, Jemal"]
[Black "Melian, Juan Sebastian"]
[WhiteFideId "14001888"]
[BlackFideId "3706575"]
[WhiteElo "2078"]
[BlackElo "2293"]
[Result "1-0"]
[Round "05"]
[TimeControl "180+2"]
[Date "2023.01.17"]
[WhiteClock "0:00:30"]
[BlackClock "0:00:01"]

1. e4 {[%clk 0:03:00]}  c5 {[%clk 0:02:53]} 2. Nf3 {[%clk 0:03:00]}  e6 {[%clk 0:02:51]} 3. c3 {[%clk 0:02:59]}  Nf6 {[%clk 0:02:51]} 4. Bd3 {[%clk 0:02:58]}  Nc6 {[%clk 0:02:43]} 5. O-O {[%clk 0:02:57]}  Be7 {[%clk 0:02:35]} 6. Bc2 {[%clk 0:02:57]}  d6 {[%clk 0:02:33]} 7. d4 {[%clk 0:02:57]}  cxd4 {[%clk 0:02:34]} 8. cxd4 {[%clk 0:02:56]}  O-O {[%clk 0:02:35]} 9. Nc3 {[%clk 0:02:56]}  h6 {[%clk 0:02:20]} 10. Qe2 {[%clk 0:02:48]}  e5 {[%clk 0:02:09]} 11. d5 {[%clk 0:02:48]}  Nb4 {[%clk 0:02:02]} 12. Bb1 {[%clk 0:02:39]}  Bd7 {[%clk 0:01:56]} 13. a3 {[%clk 0:02:38]}  Na6 {[%clk 0:01:55]} 14. Be3 {[%clk 0:02:38]}  Ng4 {[%clk 0:01:50]} 15. Bd2 {[%clk 0:02:35]}  f5 {[%clk 0:01:48]} 16. exf5 {[%clk 0:02:11]}  Bxf5 {[%clk 0:01:49]} 17. Bxf5 {[%clk 0:02:09]}  Rxf5 {[%clk 0:01:49]} 18. Qe4 {[%clk 0:02:04]}  Rf4 {[%clk 0:01:28]} 19. Bxf4 {[%clk 0:02:03]}  Nf6 {[%clk 0:01:28]} 20. Qf5 {[%clk 0:02:00]}  exf4 {[%clk 0:01:28]} 21. Rfe1 {[%clk 0:01:55]}  Bf8 {[%clk 0:01:21]} 22. Qxf4 {[%clk 0:01:51]}  Nc5 {[%clk 0:01:19]} 23. Qf5 {[%clk 0:01:32]}  Rc8 {[%clk 0:01:17]} 24. Nb5 {[%clk 0:01:26]}  a6 {[%clk 0:01:05]} 25. Nbd4 {[%clk 0:01:25]}  Nb3 {[%clk 0:01:04]} 26. Rad1 {[%clk 0:01:23]}  Na5 {[%clk 0:00:56]} 27. Ne6 {[%clk 0:01:21]}  Qd7 {[%clk 0:00:57]} 28. Qg6 {[%clk 0:01:18]}  Nc4 {[%clk 0:00:52]} 29. Nh4 {[%clk 0:00:59]}  Qf7 {[%clk 0:00:26]} 30. Qc2 {[%clk 0:00:42]}  Nb6 {[%clk 0:00:19]} 31. Qb3 {[%clk 0:00:41]}  Na8 {[%clk 0:00:02]} 32. Nf5 {[%clk 0:00:33]}  b5 {[%clk 0:00:01]} 33. Qg3 {[%clk 0:00:30]} 1-0


[Site "https://www.chess.com"]